bitfinex/quotes_BTCUSD_20250726
["timestamp","ask_amount","ask_price","bid_price","bid_amount"]
[1753531347558,2.12923264,117980.0,117970.0,8.58998029]
[1753531347755,7.02512164,117980.0,117970.0,8.58998029]
[1753531350858,2.07709264,117980.0,117970.0,8.58998029]
[1753531351163,6.97298164,117980.0,117970.0,8.58998029]
[1753531357630,7.02401164,117980.0,117970.0,8.58998029]
[1753531358326,2.12812264,117980.0,117970.0,8.58998029]
[1753531358653,7.02401164,117980.0,117970.0,8.58998029]
[1753531368043,6.97298164,117980.0,117970.0,8.58998029]
[1753531368990,7.02401164,117980.0,117970.0,8.58998029]
[1753531374010,6.80953333,117980.0,117970.0,8.58998029]
[1753531374750,6.49213144,117980.0,117970.0,8.58998029]
[1753531374925,6.80953333,117980.0,117970.0,8.58998029]
[1753531375830,1.91364433,117980.0,117970.0,8.58998029]
[1753531376067,6.80953333,117980.0,117970.0,8.58998029]
[1753531377038,6.75850333,117980.0,117970.0,8.58998029]
[1753531383196,6.62982333,117980.0,117970.0,8.58998029]
[1753531383411,6.52789701,117980.0,117970.0,8.65268029]
[1753531383626,6.18502712,117980.0,117970.0,8.65268029]
[1753531383884,6.20201826,117980.0,117970.0,8.97008218]
[1753531384302,6.33061826,117980.0,117970.0,8.82221491]
[1753531385291,6.33061826,117980.0,117970.0,8.82321491]
[1753531385706,6.32961826,117980.0,117970.0,8.82321491]
[1753531386151,6.33061826,117980.0,117970.0,8.82321491]
[1753531386780,6.32961826,117980.0,117970.0,8.82321491]
[1753531386984,6.63854421,117980.0,117970.0,8.65368029]
[1753531387207,6.32114232,117980.0,117970.0,8.65368029]
[1753531387424,6.32114232,117980.0,117970.0,8.65468029]
[1753531387560,6.63854421,117980.0,117970.0,8.65468029]
[1753531390676,6.63854421,117980.0,117970.0,8.52596029]
[1753531390894,6.63854421,117980.0,117970.0,8.49386029]
[1753531393919,6.63850421,117980.0,117970.0,8.49386029]
[1753531397728,6.69080421,117980.0,117970.0,8.49386029]
[1753531399911,6.69080421,117980.0,117970.0,8.46326029]
[1753531401347,6.69080421,117980.0,117970.0,8.49416029]
[1753531401544,6.63850421,117980.0,117970.0,8.49416029]
[1753531401749,6.53800864,117980.0,117970.0,8.40390029]
[1753531402152,6.85541053,117980.0,117970.0,8.40390029]
[1753531402989,6.85541053,117980.0,117970.0,8.40290029]
[1753531403561,6.85541053,117980.0,117970.0,8.40190029]
[1753531403779,6.85801053,117980.0,117970.0,8.40190029]
[1753531403992,6.85901053,117980.0,117970.0,8.40190029]
[1753531404457,6.73045053,117980.0,117970.0,8.40190029]
[1753531404700,6.85909053,117980.0,117970.0,8.40190029]
[1753531404928,6.85809053,117980.0,117970.0,8.40190029]
[1753531405378,6.86009053,117980.0,117970.0,8.40190029]
[1753531406092,6.86801128,117980.0,117970.0,8.40190029]
[1753531406785,6.86800899,117980.0,117970.0,8.40190029]
[1753531407000,6.86900899,117980.0,117970.0,8.40190029]
[1753531407406,1.97311999,117980.0,117970.0,8.40190029]
[1753531407651,6.86900899,117980.0,117970.0,8.40190029]
[1753531409345,6.86109053,117980.0,117970.0,8.40190029]
[1753531411854,1.96520153,117980.0,117970.0,8.40190029]
[1753531412063,6.86109053,117980.0,117970.0,8.40190029]
[1753531412262,6.85849053,117980.0,117970.0,8.40190029]
[1753531412905,6.54108864,117980.0,117970.0,8.40190029]
[1753531413090,6.85849053,117980.0,117970.0,8.40190029]
[1753531415957,1.96260153,117980.0,117970.0,8.40190029]
[1753531416163,6.85849053,117980.0,117970.0,8.40190029]
[1753531416938,1.96260153,117980.0,117970.0,8.40190029]
[1753531417171,6.85849053,117980.0,117970.0,8.40190029]
[1753531419102,6.54108864,117980.0,117970.0,8.40190029]
[1753531419349,6.85849053,117980.0,117970.0,8.40190029]
[1753531421183,1.96260153,117980.0,117970.0,8.40190029]
[1753531421391,6.85849053,117980.0,117970.0,8.40190029]
[1753531427358,6.86640687,117980.0,117970.0,8.40190029]
[1753531428943,6.54900498,117980.0,117970.0,8.40190029]
[1753531429171,6.86640687,117980.0,117970.0,8.40190029]
[1753531434403,6.86642112,117980.0,117970.0,8.40190029]
[1753531435518,6.8723695,117980.0,117970.0,8.40190029]
[1753531435761,6.54703702,117980.0,117970.0,8.40190029]
[1753531435980,6.87237009,117980.0,117970.0,8.40190029]
[1753531436868,6.87237009,117980.0,117970.0,8.40503029]
[1753531438705,6.87237009,117980.0,117970.0,8.40707029]
[1753531438915,6.87237025,117980.0,117970.0,8.40707029]
[1753531439103,6.87237025,117980.0,117970.0,8.40190029]
[1753531442603,6.87237025,117980.0,117970.0,8.40508029]
[1753531443771,6.87237025,117980.0,117970.0,8.40712029]
[1753531444390,6.87237025,117980.0,117970.0,8.45649029]
[1753531446901,1.97648125,117980.0,117970.0,8.45649029]
[1753531447105,6.87237025,117980.0,117970.0,8.45649029]
[1753531452177,6.63922855,117980.0,117970.0,8.45649029]
[1753531452607,6.63922854,117980.0,117970.0,8.45649029]
[1753531454489,1.74333954,117980.0,117970.0,8.45649029]
[1753531454723,6.63922854,117980.0,117970.0,8.45649029]
[1753531456878,6.63129728,117980.0,117970.0,8.45649029]
[1753531457098,6.62534883,117980.0,117970.0,8.45649029]
[1753531457321,6.62534883,117980.0,117970.0,8.40190029]
[1753531457954,6.62534883,117980.0,117970.0,8.40712029]
[1753531458836,6.94275072,117980.0,117970.0,8.40712029]
[1753531459062,6.62534883,117980.0,117970.0,8.40712029]
[1753531461142,6.62534883,117980.0,117970.0,8.45649029]
[1753531462378,6.59534883,117980.0,117970.0,8.45649029]
[1753531464344,6.62624883,117980.0,117970.0,8.45649029]
[1753531464941,6.62624883,117980.0,117970.0,8.40712029]
[1753531465584,6.94365072,117980.0,117970.0,8.40712029]
[1753531466500,6.62624883,117980.0,117970.0,8.40712029]
[1753531468471,1.73035983,117980.0,117970.0,8.40712029]
[1753531468677,6.62624883,117980.0,117970.0,8.40712029]
[1753531469099,1.73035983,117980.0,117970.0,8.45866029]
[1753531469305,6.62624883,117980.0,117970.0,8.45866029]
[1753531469727,6.30884694,117980.0,117970.0,8.45866029]
[1753531469943,6.62624883,117980.0,117970.0,8.45866029]
[1753531471441,6.77624883,117980.0,117970.0,8.45866029]
[1753531471689,1.88035983,117980.0,117970.0,8.45866029]
[1753531471901,6.77624883,117980.0,117970.0,8.45866029]
[1753531473289,7.09365072,117980.0,117970.0,8.45866029]
[1753531475040,7.06275072,117980.0,117970.0,8.45866029]
[1753531475834,2.16686172,117980.0,117970.0,8.45866029]
[1753531476047,7.06275072,117980.0,117970.0,8.45866029]
[1753531476663,6.74534883,117980.0,117970.0,8.45866029]
[1753531477078,6.71464883,117980.0,117970.0,8.45866029]
[1753531478212,6.74694883,117980.0,117970.0,8.45866029]
[1753531480912,7.06435072,117980.0,117970.0,8.45866029]
[1753531481101,7.09465072,117980.0,117970.0,8.45866029]
[1753531482908,7.09465072,117980.0,117970.0,8.40190029]
[1753531483119,2.19876172,117980.0,117970.0,8.40190029]
[1753531483330,7.09465072,117980.0,117970.0,8.40190029]
[1753531483727,7.14465072,117980.0,117970.0,8.40190029]
[1753531486393,6.97052497,117980.0,117970.0,8.40190029]
[1753531488134,6.97312497,117980.0,117970.0,8.40190029]
[1753531488343,6.97052497,117980.0,117970.0,8.40190029]
[1753531489842,6.97646793,117980.0,117970.0,8.40190029]
[1753531490057,6.97906793,117980.0,117970.0,8.39750029]
[1753531490258,6.98699182,117980.0,117970.0,8.39750029]
[1753531490370,6.98699156,117980.0,117970.0,8.39750029]
[1753531490813,6.98699156,117980.0,117970.0,7.99750029]
[1753531491578,6.98439156,117980.0,117970.0,7.99750029]
[1753531492028,6.98139156,117980.0,117970.0,7.99750029]
[1753531492231,2.08950256,117980.0,117970.0,7.99850029]
[1753531492447,6.99039156,117980.0,117970.0,7.99850029]
[1753531495281,6.99038932,117980.0,117970.0,7.99850029]
[1753531495717,6.99038932,117980.0,117970.0,7.59850029]
[1753531497919,6.99038932,117980.0,117970.0,7.65510029]
[1753531498378,6.99038932,117980.0,117970.0,7.60383029]
[1753531498601,6.63118743,117980.0,117970.0,7.65510029]
[1753531498814,6.75998743,117980.0,117970.0,7.71890029]
[1753531500687,7.07738932,117980.0,117970.0,7.71890029]
[1753531500951,7.07738889,117980.0,117970.0,7.71890029]
[1753531501172,6.759987,117980.0,117970.0,7.71890029]
[1753531503192,6.75998527,117980.0,117970.0,7.68660029]
[1753531503396,7.07738716,117980.0,117970.0,7.68660029]
[1753531504512,7.07738802,117980.0,117970.0,7.68660029]
[1753531506624,7.07738802,117980.0,117970.0,7.65510029]
[1753531507050,7.07738802,117980.0,117970.0,7.68570029]
[1753531507482,2.18149902,117980.0,117970.0,7.68570029]
[1753531507697,7.07738802,117980.0,117970.0,7.68570029]
[1753531510549,7.07738802,117980.0,117970.0,7.71620029]
[1753531511651,7.07738802,117980.0,117970.0,7.68570029]
[1753531512288,7.06946591,117980.0,117970.0,7.68570029]
[1753531512553,7.0773932,117980.0,117970.0,7.68570029]
[1753531512982,6.44258942,117980.0,117970.0,7.68570029]
[1753531513195,7.0773932,117980.0,117970.0,7.68570029]
[1753531514159,7.1336332,117980.0,117970.0,7.68570029]
[1753531514360,7.1336332,117980.0,117970.0,7.65510029]
[1753531514591,7.12570591,117980.0,117970.0,7.65510029]
[1753531514803,7.12570591,117980.0,117970.0,7.19850029]
[1753531514804,7.19971788,117980.0,117970.0,7.19850029]
[1753531515040,7.20231788,117980.0,117970.0,7.19850029]
[1753531516017,2.30642888,117980.0,117970.0,7.19850029]
[1753531516226,7.20231788,117980.0,117970.0,7.19850029]
[1753531516647,7.19971788,117980.0,117970.0,7.19850029]
[1753531518008,6.86719788,117980.0,117970.0,7.19850029]
[1753531518205,6.99619788,117980.0,117970.0,7.19850029]
[1753531518406,6.99619788,117980.0,117970.0,7.20167029]
[1753531518832,6.99619788,117980.0,117970.0,7.19850029]
[1753531519873,6.99619788,117980.0,117970.0,6.79850029]
[1753531521057,6.96349788,117980.0,117970.0,6.79850029]
[1753531521291,6.93209788,117980.0,117970.0,6.79850029]
[1753531521527,6.99599788,117980.0,117970.0,6.79850029]
[1753531522183,2.10010888,117980.0,117970.0,6.79850029]
[1753531522379,6.99599788,117980.0,117970.0,6.79850029]
[1753531523441,6.99599893,117980.0,117970.0,6.79850029]
[1753531524699,6.96429893,117980.0,117970.0,6.80167029]
[1753531524913,6.96429893,117980.0,117970.0,6.40167029]
[1753531526729,6.99599956,117980.0,117970.0,6.40167029]
[1753531530078,6.99599956,117980.0,117970.0,6.00167029]
[1753531530528,6.11007578,117980.0,117970.0,6.09291029]
[1753531530752,7.07747956,117980.0,117970.0,6.09291029]
[1753531536458,7.07747679,117980.0,117970.0,6.09291029]
[1753531536628,2.18158779,117980.0,117970.0,6.09291029]
[1753531536857,7.07747679,117980.0,117970.0,6.06051029]
[1753531539373,7.13801679,117980.0,117970.0,6.06051029]
[1753531539837,7.13999679,117980.0,117970.0,5.99850029]
[1753531540065,7.20319679,117980.0,117970.0,5.99850029]
[1753531540728,2.30730779,117980.0,117970.0,5.99850029]
[1753531540990,7.20319679,117980.0,117970.0,5.99850029]
[1753531541438,7.19725126,117980.0,117970.0,5.99850029]
[1753531541649,7.20319568,117980.0,117970.0,5.99850029]
[1753531542133,7.17269568,117980.0,117970.0,5.99850029]
[1753531542354,7.20319568,117980.0,117970.0,5.99850029]
[1753531542814,2.30730668,117980.0,117970.0,5.99850029]
[1753531543007,7.20319568,117980.0,117970.0,5.99850029]
[1753531544884,2.30730668,117980.0,117970.0,5.99850029]
[1753531545066,7.20319568,117980.0,117970.0,5.99850029]
[1753531546650,7.20319568,117980.0,117970.0,6.00053029]
[1753531546878,7.20319568,117980.0,117970.0,6.06034029]
[1753531547068,7.20319568,117980.0,117970.0,6.00353029]
[1753531548132,7.20319635,117980.0,117970.0,6.00353029]
[1753531549161,7.17269635,117980.0,117970.0,6.00353029]
[1753531549782,7.13999635,117980.0,117970.0,6.00353029]
[1753531550103,7.13999635,117980.0,117970.0,6.06034029]
[1753531550308,2.24410735,117980.0,117970.0,6.06034029]
[1753531550514,2.24410726,117980.0,117970.0,6.06034029]
[1753531550692,7.13999626,117980.0,117970.0,6.06034029]
[1753531552177,7.13999626,117980.0,117970.0,6.00353029]
[1753531552402,7.20319626,117980.0,117970.0,6.00353029]
[1753531552618,7.17269626,117980.0,117970.0,6.00353029]
[1753531553459,7.17269702,117980.0,117970.0,6.00353029]
[1753531554045,7.13999702,117980.0,117970.0,6.00353029]
[1753531554306,7.13999702,117980.0,117970.0,6.06034029]
[1753531556656,2.24410802,117980.0,117970.0,6.06034029]
[1753531556888,7.13999702,117980.0,117970.0,6.06034029]
[1753531558840,2.24410802,117980.0,117970.0,6.06034029]
[1753531558971,7.13999702,117980.0,117970.0,6.06034029]
[1753531559613,7.13405186,117980.0,117970.0,6.06034029]
[1753531561144,7.12612497,117980.0,117970.0,6.06034029]
[1753531562030,6.49132119,117980.0,117970.0,6.06034029]
[1753531562246,7.12612497,117980.0,117970.0,6.06034029]
[1753531562450,7.13207203,117980.0,117970.0,6.06034029]
[1753531562923,7.14000156,117980.0,117970.0,6.06034029]
[1753531568625,2.24411256,117980.0,117970.0,6.06034029]
[1753531569053,7.14000156,117980.0,117970.0,6.06034029]
[1753531570345,7.13802156,117980.0,117970.0,6.06034029]
[1753531570837,7.07728156,117980.0,117970.0,6.06034029]
[1753531572653,6.69488156,117980.0,117970.0,6.06034029]
[1753531572858,6.70987967,117980.0,117970.0,6.12164029]
[1753531573078,6.7098807,117980.0,117970.0,6.12164029]
[1753531573286,1.8139917,117980.0,117970.0,6.12164029]
[1753531573513,6.7098807,117980.0,117970.0,6.12164029]
[1753531575378,1.8139917,117980.0,117970.0,6.12164029]
[1753531575560,6.7098807,117980.0,117970.0,6.12164029]
[1753531575961,6.24247881,117980.0,117970.0,6.12164029]
[1753531576181,6.7098807,117980.0,117970.0,6.12164029]
[1753531579484,1.8139917,117980.0,117970.0,6.12164029]
[1753531579731,6.7098807,117980.0,117970.0,6.12164029]
[1753531580390,6.70987869,117980.0,117970.0,6.12164029]
[1753531583930,6.69600308,117980.0,117970.0,6.12164029]
[1753531584607,6.37860119,117980.0,117970.0,6.12164029]
[1753531584892,6.70987739,117980.0,117970.0,6.12164029]
[1753531585103,6.70987743,117980.0,117970.0,6.12164029]
[1753531585299,6.70194924,117980.0,117970.0,6.12164029]
[1753531585952,6.69600308,117980.0,117970.0,6.12164029]
[1753531586402,6.70194927,117980.0,117970.0,6.12164029]
[1753531586817,6.70987752,117980.0,117970.0,6.12164029]
[1753531587669,6.55451913,117980.0,117970.0,6.12164029]
[1753531592047,1.65863013,117980.0,117970.0,6.12164029]
[1753531592252,6.55451913,117980.0,117970.0,6.12164029]
[1753531593772,6.55451913,117980.0,117970.0,6.09144029]
[1753531594043,6.93198102,117980.0,117970.0,6.09144029]
[1753531594268,6.29717799,117980.0,117970.0,6.09144029]
[1753531594488,6.61457988,117980.0,117970.0,6.09144029]
[1753531596143,6.29717799,117980.0,117970.0,6.09144029]
[1753531596374,6.61457988,117980.0,117970.0,6.09144029]
[1753531599206,6.61655988,117980.0,117970.0,6.06034029]
[1753531599584,6.93396177,117980.0,117970.0,6.06034029]
[1753531601437,6.99856177,117980.0,117970.0,5.99850029]
[1753531604711,6.96676177,117980.0,117970.0,5.61394609]
[1753531604894,6.99886177,117980.0,117970.0,5.61394609]
[1753531605097,2.10297277,117980.0,117970.0,5.61394609]
[1753531605240,6.99886177,117980.0,117970.0,5.61394609]
[1753531607013,6.99886184,117980.0,117970.0,5.61394609]
[1753531612667,2.10297284,117980.0,117970.0,5.61394609]
[1753531612866,6.99886184,117980.0,117970.0,5.61394609]
[1753531613363,6.96606184,117980.0,117970.0,5.61394609]
[1753531615652,6.77765406,117980.0,117970.0,5.61394609]
[1753531616072,6.77765406,117980.0,117970.0,5.61700609]
[1753531617090,6.77765406,117980.0,117970.0,5.61900609]
[1753531618749,6.74555406,117980.0,117970.0,5.61900609]
[1753531618990,1.84966506,117980.0,117970.0,5.67820609]
[1753531619236,6.74555406,117980.0,117970.0,5.67820609]
[1753531621007,6.74555582,117980.0,117970.0,5.67820609]
[1753531622954,6.74555582,117980.0,117970.0,5.61900609]
[1753531623179,6.80805582,117980.0,117970.0,5.61394609]
[1753531623777,6.77655582,117980.0,117970.0,5.61898609]
[1753531623911,6.77655582,117980.0,117970.0,5.67818609]
[1753531624972,1.84966682,117980.0,117970.0,5.67818609]
[1753531625190,6.74555582,117980.0,117970.0,5.67818609]
[1753531627649,6.74555582,117980.0,117970.0,5.21394609]
[1753531627884,1.91236682,117980.0,117970.0,5.21394609]
[1753531628102,6.81085582,117980.0,117970.0,5.21394609]
[1753531628623,6.80825582,117980.0,117970.0,5.21394609]
[1753531632896,6.80825582,117980.0,117970.0,4.81394609]
[1753531633110,1.91236682,117980.0,117970.0,4.81394609]
[1753531633317,6.80826013,117980.0,117970.0,4.87818609]
[1753531633551,6.74556013,117980.0,117970.0,4.87818609]
[1753531634410,6.68352013,117980.0,117970.0,4.87818609]
[1753531635137,6.79279013,117980.0,117970.0,4.40783574]
[1753531635376,6.81656012,117980.0,117970.0,4.27974231]
[1753531635579,6.79279559,117980.0,117970.0,4.27974231]
[1753531636434,6.79279559,117980.0,117970.0,4.28278231]
[1753531637922,6.79279559,117980.0,117970.0,3.88478231]
[1753531638839,1.89690659,117980.0,117970.0,3.88478231]
[1753531639272,6.79279559,117980.0,117970.0,3.88478231]
[1753531639390,6.79279559,117980.0,117970.0,3.94398231]
[1753531640952,6.84368559,117980.0,117970.0,3.94398231]
[1753531641189,6.7927907,117980.0,117970.0,3.94398231]
[1753531642868,6.7927907,117980.0,117970.0,3.54398231]
[1753531643272,1.8969017,117980.0,117970.0,3.54398231]
[1753531643454,6.7927907,117980.0,117970.0,3.54398231]
[1753531644266,6.79274062,117980.0,117970.0,3.54398231]
[1753531646804,6.79274149,117980.0,117970.0,3.54398231]
[1753531647245,6.8187914,117980.0,117970.0,3.47974231]
[1753531647461,6.85764151,117980.0,117970.0,3.47974231]
[1753531647694,6.82474151,117980.0,117970.0,3.47974231]
[1753531647925,6.79274151,117980.0,117970.0,3.08499231]
[1753531648378,6.79274151,117980.0,117970.0,3.07974231]
[1753531648949,6.79274151,117980.0,117970.0,3.08284231]
[1753531649811,6.79274151,117980.0,117970.0,3.08499231]
[1753531650569,6.85764151,117980.0,117970.0,3.07974231]
[1753531650900,6.82494151,117980.0,117970.0,3.07974231]
[1753531651153,6.79274151,117980.0,117970.0,3.07974231]
[1753531651416,6.85764151,117980.0,117970.0,3.07974231]
[1753531652285,6.79274151,117980.0,117970.0,3.07974231]
[1753531652581,6.79274151,117980.0,117970.0,3.14958231]
[1753531655052,6.79274151,117980.0,117970.0,3.08499231]
[1753531655301,6.82444151,117980.0,117970.0,3.08499231]
[1753531655720,6.85684151,117980.0,117970.0,2.69241218]
[1753531655970,6.85684151,117980.0,117970.0,2.64817012]
[1753531656188,6.82444151,117980.0,117970.0,2.64817012]
[1753531656641,6.79274151,117980.0,117970.0,2.65127012]
[1753531657546,1.89685251,117980.0,117970.0,2.65127012]
[1753531657822,6.79274151,117980.0,117970.0,2.65127012]
[1753531658032,6.79274151,117980.0,117970.0,2.65342012]
[1753531658559,6.79274151,117980.0,117970.0,2.71801012]
[1753531659026,6.85684151,117980.0,117970.0,2.64817012]
[1753531659276,6.8568441,117980.0,117970.0,2.64817012]
[1753531659743,6.8244441,117980.0,117970.0,2.64817012]
[1753531660106,6.7927441,117980.0,117970.0,2.64817012]
[1753531660347,6.8568441,117980.0,117970.0,2.64817012]
[1753531660782,6.8244441,117980.0,117970.0,2.64817012]
[1753531661209,6.7927441,117980.0,117970.0,2.64817012]
[1753531661832,6.7927441,117980.0,117970.0,2.65127012]
[1753531663487,6.15794032,117980.0,117970.0,2.65127012]
[1753531663705,6.79274404,117980.0,117970.0,2.65127012]
[1753531663925,6.79274404,117980.0,117970.0,2.65342012]
[1753531664172,6.79274404,117980.0,117970.0,2.71801012]
[1753531665151,1.89685504,117980.0,117970.0,2.71801012]
[1753531665366,6.79274404,117980.0,117970.0,2.71801012]
[1753531668086,1.89685504,117980.0,117970.0,2.71801012]
[1753531668318,6.79274404,117980.0,117970.0,2.71801012]
[1753531669211,6.82574404,117980.0,117970.0,2.33118957]
[1753531669596,6.79274404,117980.0,117970.0,2.33118957]
[1753531671098,6.84363404,117980.0,117970.0,2.33118957]
[1753531671303,1.89685504,117980.0,117970.0,2.33118957]
[1753531671510,6.79274404,117980.0,117970.0,1.94458874]
[1753531679847,6.79274682,117980.0,117970.0,1.94458874]
[1753531681495,1.89685782,117980.0,117970.0,1.94458874]
[1753531681701,6.79274682,117980.0,117970.0,1.94458874]
[1753531681911,6.79274713,117980.0,117970.0,1.94458874]
[1753531683878,6.79274713,117980.0,117970.0,1.54683155]
[1753531684088,6.79274713,117980.0,117970.0,1.38406472]
[1753531684505,1.89685813,117980.0,117970.0,1.38406472]
[1753531684801,6.79274742,117980.0,117970.0,1.38406472]
[1753531687805,6.77885794,117980.0,117970.0,1.38406472]
[1753531688013,6.79274828,117980.0,117970.0,1.38406472]
[1753531688430,6.7927484,117980.0,117970.0,1.38406472]
[1753531689973,6.7334784,117980.0,117970.0,1.41666472]
[1753531690464,6.8021784,117980.0,117970.0,1.41666472]
[1753531690845,6.79424106,117980.0,117970.0,1.41666472]
[1753531691091,6.80217925,117980.0,117970.0,1.41666472]
[1753531691318,6.80217925,117980.0,117970.0,1.38406472]
[1753531691995,6.80217925,117980.0,117970.0,1.41516472]
[1753531694027,6.80217953,117980.0,117970.0,1.41516472]
[1753531695174,1.90629053,117980.0,117970.0,1.41516472]
[1753531695396,1.90629053,117980.0,117970.0,1.38406472]
[1753531695670,6.80217953,117980.0,117970.0,1.38406472]
[1753531698174,6.80415953,117980.0,117970.0,1.38406472]
[1753531698765,6.80415953,117980.0,117970.0,1.41586472]
[1753531699881,6.8041622,117980.0,117970.0,1.41586472]
[1753531700327,6.8041622,117980.0,117970.0,1.38406472]
[1753531701223,6.80416248,117980.0,117970.0,1.31947472]
[1753531701932,6.40108248,117980.0,117970.0,1.42347472]
[1753531702168,6.41604059,117980.0,117970.0,1.45467472]
[1753531702383,6.73344248,117980.0,117970.0,1.45467472]
[1753531702586,6.74932005,117980.0,117970.0,1.45467472]
[1753531702793,6.74336537,117980.0,117970.0,1.45467472]
[1753531703014,6.74931955,117980.0,117970.0,1.45467472]
[1753531705817,6.74931614,117980.0,117970.0,1.45467472]
[1753531706033,1.85342714,117980.0,117970.0,1.45467472]
[1753531706242,6.74931614,117980.0,117970.0,1.45467472]
[1753531710394,6.11451236,117980.0,117970.0,1.45467472]
[1753531710622,6.74931614,117980.0,117970.0,1.45467472]
[1753531711889,6.62067614,117980.0,117970.0,1.45467472]
[1753531712104,1.48602525,117980.0,117970.0,1.45467472]
[1753531712319,6.38191425,117980.0,117970.0,1.45467472]
[1753531715743,6.77087614,117980.0,117970.0,1.45467472]
[1753531716643,6.77087614,117980.0,117970.0,1.42347472]
[1753531716872,6.77285614,117980.0,117970.0,1.35197472]
[1753531717100,6.77285614,117980.0,117970.0,1.34672472]
[1753531718211,6.77285614,117980.0,117970.0,1.34980472]
[1753531718658,6.77285614,117980.0,117970.0,1.31422472]
[1753531720673,6.77284828,117980.0,117970.0,1.31422472]
[1753531722421,1.87695928,117980.0,117970.0,1.31422472]
[1753531722607,6.77284828,117980.0,117970.0,1.31422472]
[1753531724549,1.87695928,117980.0,117970.0,1.31422472]
[1753531724729,6.77284828,117980.0,117970.0,1.31422472]
[1753531725804,1.87695928,117980.0,117970.0,1.31422472]
[1753531726053,6.77284828,117980.0,117970.0,1.31422472]
[1753531726274,6.77284896,117980.0,117970.0,1.31422472]
[1753531727081,6.80284896,117980.0,117970.0,1.31422472]
[1753531727777,6.82284896,117980.0,117970.0,1.31422472]
[1753531735211,6.82284976,117980.0,117970.0,1.31422472]
[1753531735662,6.18804598,117980.0,117970.0,1.31422472]
[1753531735886,6.82284976,117980.0,117970.0,1.31422472]
[1753531737099,6.80698032,117980.0,117970.0,1.31422472]
[1753531737326,6.80698032,117980.0,117970.0,1.31715472]
[1753531738658,6.80698027,117980.0,117970.0,1.31715472]
[1753531741064,1.91109127,117980.0,117970.0,1.31715472]
[1753531741516,6.80698027,117980.0,117970.0,1.31715472]
[1753531748957,6.60228052,117980.0,117970.0,1.31715472]
[1753531749209,6.77180077,117980.0,117970.0,1.31715472]
[1753531749917,6.77180077,117980.0,117970.0,1.30867472]
[1753531750290,1.87591177,117980.0,117970.0,1.31071472]
[1753531750516,6.77180077,117980.0,117970.0,1.31071472]
[1753531750747,6.7718075,117980.0,117970.0,1.31071472]
[1753531752465,1.8759185,117980.0,117970.0,1.31071472]
[1753531752688,6.7718075,117980.0,117970.0,1.31071472]
[1753531757067,1.8759185,117980.0,117970.0,1.31071472]
[1753531757284,6.7718075,117980.0,117970.0,1.31071472]
[1753531760855,6.7718075,117980.0,117970.0,1.30574472]
[1753531761867,1.8759185,117980.0,117970.0,1.30574472]
[1753531762086,6.7718075,117980.0,117970.0,1.30574472]
[1753531763171,6.7718075,117980.0,117970.0,1.30867472]
[1753531764274,6.77163797,117980.0,117970.0,1.30867472]
[1753531764870,6.77163797,117980.0,117970.0,1.30574472]
[1753531765103,6.80463797,117980.0,117970.0,1.30574472]
[1753531765447,6.16983419,117980.0,117970.0,1.30574472]
[1753531765648,6.77163797,117980.0,117970.0,1.30574472]
[1753531766625,6.80483797,117980.0,117970.0,1.30574472]
[1753531766849,6.80223797,117980.0,117970.0,1.30574472]
[1753531767073,6.77163797,117980.0,117970.0,1.30574472]
[1753531767286,6.77163797,117980.0,117970.0,0.92151379]
[1753531767287,6.77216022,117980.0,117970.0,0.92151379]
[1753531771884,6.77215988,117980.0,117970.0,0.92151379]
[1753531772116,1.87627088,117980.0,117970.0,0.92151379]
[1753531772333,6.77215988,117980.0,117970.0,0.92151379]
[1753531772799,6.12941269,117980.0,117970.0,0.92151379]
[1753531773025,6.12941269,117980.0,117970.0,0.92446379]
[1753531773256,6.76421647,117980.0,117970.0,0.53334662]
[1753531773485,6.12941269,117980.0,117970.0,0.53334662]
[1753531773724,6.76421647,117980.0,117970.0,0.53334662]
[1753531773949,6.12941269,117980.0,117970.0,0.53334662]
[1753531774172,6.76421647,117980.0,117970.0,0.53334662]
[1753531775055,6.76421647,117980.0,117970.0,0.53629662]
[1753531776825,6.76421647,117980.0,117970.0,0.53830662]
[1753531777730,6.76620095,117980.0,117970.0,0.53830662]
[1753531778163,6.77215748,117980.0,117970.0,0.53830662]
[1753531780502,6.77215748,117980.0,117970.0,0.61274662]
[1753531781187,6.77419748,117980.0,117970.0,0.61274662]
[1753531781635,6.77419748,117980.0,117970.0,0.64584662]
[1753531781851,6.56945748,117980.0,117970.0,0.64584662]
[1753531782068,6.70061748,117980.0,117970.0,0.64584662]
[1753531782307,6.70061748,117980.0,117970.0,0.67864662]
[1753531783218,6.77346748,117980.0,117970.0,0.67864662]
[1753531783662,6.77346748,117980.0,117970.0,0.64584662]
[1753531784105,6.77545748,117980.0,117970.0,0.64584662]
[1753531785476,1.87956848,117980.0,117970.0,0.64584662]
[1753531785705,6.77545748,117980.0,117970.0,0.64584662]
[1753531786398,1.87956848,117980.0,117970.0,0.64584662]
[1753531786617,6.77545748,117980.0,117970.0,0.64584662]
[1753531788383,1.87956848,117980.0,117970.0,0.64584662]
[1753531788565,6.77545748,117980.0,117970.0,0.64584662]
[1753531789213,6.77545748,117980.0,117970.0,0.61274662]
[1753531789571,6.77545748,117980.0,117970.0,0.53830662]
[1753531791460,1.87956848,117980.0,117970.0,0.53830662]
[1753531791683,6.77545748,117980.0,117970.0,0.53830662]
[1753531794582,6.77545831,117980.0,117970.0,0.53830662]
[1753531800039,1.87956931,117980.0,117970.0,0.53830662]
[1753531800266,6.77545831,117980.0,117970.0,0.53830662]
[1753531804280,6.76950178,117980.0,117970.0,0.53830662]
[1753531804472,6.7754563,117980.0,117970.0,0.53830662]
[1753531806132,6.14065252,117980.0,117970.0,0.53830662]
[1753531806346,6.7754563,117980.0,117970.0,0.53830662]
[1753531808273,6.77545227,117980.0,117970.0,0.53830662]
[1753531808454,6.77545227,117980.0,117970.0,0.60964662]
[1753531810075,6.14064849,117980.0,117970.0,0.60964662]
[1753531810290,6.77545227,117980.0,117970.0,0.60964662]
[1753531810699,6.14064849,117980.0,117970.0,0.60964662]
[1753531810975,6.77545227,117980.0,117970.0,0.60964662]
[1753531812001,6.70037227,117980.0,117970.0,0.67144662]
[1753531812528,6.77271227,117980.0,117970.0,0.67144662]
[1753531812720,6.77271227,117980.0,117970.0,0.64124662]
[1753531814460,1.87682327,117980.0,117970.0,0.64124662]
[1753531814659,6.77271227,117980.0,117970.0,0.64124662]
[1753531814988,6.77469227,117980.0,117970.0,0.64124662]
[1753531820626,6.82558227,117980.0,117970.0,0.64124662]
[1753531820847,6.77469227,117980.0,117970.0,0.64124662]
[1753531822751,6.57097227,117980.0,117970.0,0.64124662]
[1753531822958,6.57097227,117980.0,117970.0,0.67144662]
[1753531823439,6.57097227,117980.0,117970.0,0.64124662]
[1753531823640,6.57096951,117980.0,117970.0,0.64124662]
[1753531823862,1.67508051,117980.0,117970.0,0.64124662]
[1753531824083,6.57096951,117980.0,117970.0,0.64124662]
[1753531825982,6.25356762,117980.0,117970.0,0.64124662]
[1753531826199,6.25356762,117980.0,117970.0,0.63994662]
[1753531826399,6.57096951,117980.0,117970.0,0.63994662]
[1753531826705,6.25356762,117980.0,117970.0,0.63994662]
[1753531827646,6.2535646,117980.0,117970.0,0.63994662]
[1753531828217,6.1226446,117980.0,117970.0,0.63994662]
[1753531828475,5.9791646,117980.0,117970.0,0.67314662]